bitfinex/quotes_BTCUSD_20241203
["timestamp","ask_amount","ask_price","bid_price","bid_amount"]
[1733249177486,0.005,95830.0,95829.0,0.1483266]
[1733249177953,0.01084818,95830.0,95829.0,0.1483266]
[1733249178886,0.01084818,95830.0,95829.0,0.1007266]
[1733249179144,0.01084818,95830.0,95829.0,0.0237266]
[1733249179326,0.01084818,95830.0,95829.0,0.02353584]
[1733249183703,0.01084818,95830.0,95829.0,0.15273584]
[1733249183937,0.005,95830.0,95829.0,0.15273584]
[1733249184148,0.005,95830.0,95829.0,0.15458264]
[1733249184589,0.005,95830.0,95829.0,0.15273584]
[1733249185967,0.005,95830.0,95829.0,0.15458264]
[1733249188363,0.005,95830.0,95829.0,0.15273584]
[1733249191726,0.005,95830.0,95829.0,0.15458264]
[1733249192719,0.005,95830.0,95829.0,0.15273584]
[1733249194811,0.0058632,95830.0,95829.0,0.15273584]
[1733249199952,0.0058632,95830.0,95829.0,0.15458265]
[1733249202289,0.0058632,95830.0,95829.0,0.25929524]
[1733249202535,0.0058632,95830.0,95829.0,0.45744843]
[1733249202965,0.0058632,95830.0,95829.0,0.45644843]
[1733249203182,0.0058632,95830.0,95829.0,0.25644843]
[1733249203407,0.0008632,95830.0,95829.0,0.02253584]
[1733249203831,0.0018632,95830.0,95829.0,0.03153584]
[1733249204978,0.0091052,95830.0,95829.0,0.02253584]
[1733249205238,0.0091052,95830.0,95829.0,0.02153584]
[1733249205436,0.0111052,95830.0,95829.0,0.03753584]
[1733249205877,0.0091052,95830.0,95829.0,0.02153584]
[1733249206527,0.0091052,95830.0,95829.0,0.02353584]
[1733249206943,0.0091052,95830.0,95829.0,0.02153584]
[1733249208225,0.0863052,95830.0,95829.0,0.02153584]
[1733249208441,0.34101779,95830.0,95829.0,0.02253584]
[1733249209074,0.34101779,95830.0,95829.0,0.02153584]
[1733249209505,0.34701779,95830.0,95829.0,0.02153584]
[1733249209753,0.34301779,95830.0,95829.0,0.02153584]
[1733249209937,0.34701779,95830.0,95829.0,0.02253584]
[1733249211495,0.3738997,95830.0,95829.0,0.02253584]
[1733249211704,0.3678997,95830.0,95829.0,0.02153584]
[1733249211926,0.3708997,95830.0,95829.0,0.02253584]
[1733249212160,0.3768997,95830.0,95829.0,0.02253584]
[1733249212512,0.3738997,95830.0,95829.0,0.02253584]
[1733249212641,0.3768997,95830.0,95829.0,0.02253584]
[1733249215529,0.4246997,95830.0,95829.0,0.02253584]
[1733249215967,0.4246997,95830.0,95829.0,0.00253584]
[1733249216184,0.2996997,95830.0,95829.0,0.00253584]
[1733249216681,0.0181052,95830.0,95829.0,0.00253584]
[1733249217590,0.0181052,95830.0,95829.0,0.21124084]
[1733249217831,0.0181052,95830.0,95829.0,0.34238761]
[1733249218061,0.0098632,95830.0,95829.0,0.34054084]
[1733249218775,0.0038632,95830.0,95829.0,0.33954084]
[1733249219013,0.0038632,95830.0,95829.0,0.34854084]
[1733249219231,0.0018632,95830.0,95829.0,0.33954084]
[1733249219676,0.0028632,95830.0,95829.0,0.34854084]
[1733249219919,0.0038632,95830.0,95829.0,0.35454084]
[1733249220389,0.0038632,95830.0,95829.0,0.38209644]
[1733249220634,0.0038632,95830.0,95829.0,0.68680903]
[1733249221087,0.0028632,95830.0,95829.0,0.68080903]
[1733249221572,0.0038632,95830.0,95829.0,0.68680903]
[1733249222715,0.0008632,95833.0,95832.0,0.3487]
[1733249222941,0.0008632,95833.0,95832.0,0.23041259]
[1733249223180,0.0008632,95833.0,95832.0,0.1257]
[1733249223873,0.0008632,95833.0,95832.0,0.0774]
[1733249224101,0.208698,95832.0,95829.0,0.00753584]
[1733249224334,0.208698,95832.0,95829.0,0.00153584]
[1733249224560,0.00777895,95833.0,95832.0,0.008]
[1733249224561,0.0018632,95833.0,95832.0,0.008]
[1733249225038,0.0018632,95833.0,95829.0,0.00153584]
[1733249225039,0.417396,95832.0,95829.0,0.00153584]
[1733249225590,0.358702,95830.0,95829.0,0.00453584]
[1733249225834,0.46341459,95830.0,95829.0,0.00753584]
[1733249226088,0.46341459,95830.0,95829.0,0.00453584]
[1733249227059,0.46341459,95830.0,95829.0,0.00153584]
[1733249227300,0.4704943,95830.0,95829.0,0.00153584]
[1733249228028,0.4734943,95830.0,95829.0,0.00253584]
[1733249228269,0.4774943,95830.0,95829.0,0.00253584]
[1733249228747,0.4704943,95830.0,95829.0,0.00153584]
[1733249229009,0.4784943,95830.0,95829.0,0.00253584]
[1733249229962,0.37378171,95830.0,95829.0,0.00253584]
[1733249230691,0.01007971,95830.0,95829.0,0.00253584]
[1733249231180,0.002,95830.0,95829.0,0.00153584]
[1733249231416,0.005,95830.0,95829.0,0.00153584]
[1733249231667,0.0008632,95833.0,95829.0,0.00153584]
[1733249231668,0.208701,95831.0,95829.0,0.00153584]
[1733249231912,0.000863,95830.0,95829.0,0.00253584]
[1733249232120,0.00723579,95830.0,95829.0,0.00453584]
[1733249233344,0.000863,95830.0,95829.0,0.00538266]
[1733249233591,0.000863,95830.0,95829.0,0.00638266]
[1733249234035,0.000863,95830.0,95829.0,0.00538266]
[1733249234481,0.000863,95830.0,95829.0,0.00638266]
[1733249235141,0.000863,95830.0,95829.0,0.05268266]
[1733249235661,0.000863,95830.0,95829.0,0.15739525]
[1733249235894,0.000863,95830.0,95829.0,0.23459525]
[1733249236105,0.000863,95830.0,95829.0,0.23274843]
[1733249236779,0.000863,95830.0,95829.0,0.12603584]
[1733249237019,0.000863,95830.0,95829.0,0.12503584]
[1733249237248,0.000863,95830.0,95829.0,0.13403584]
[1733249237490,0.000863,95830.0,95829.0,0.00153584]
[1733249237740,0.000863,95830.0,95829.0,0.00753584]
[1733249238009,0.000863,95830.0,95829.0,0.01653584]
[1733249238245,0.000863,95830.0,95829.0,0.00153584]
[1733249238484,0.000863,95830.0,95829.0,0.01353584]
[1733249238718,0.000863,95830.0,95829.0,0.00553584]
[1733249238956,0.000863,95830.0,95829.0,0.00153584]
[1733249240181,0.000863,95830.0,95829.0,0.00653584]
[1733249240677,0.000863,95830.0,95829.0,0.00853584]
[1733249240916,0.000863,95830.0,95829.0,0.11009505]
[1733249241138,0.000863,95830.0,95829.0,0.43569505]
[1733249241368,0.000863,95830.0,95829.0,0.43384843]
[1733249241582,0.000863,95830.0,95829.0,0.43084843]
[1733249241813,0.000863,95830.0,95829.0,0.43684843]
[1733249242041,0.0008636,95840.0,95839.0,0.556283]
[1733249242287,0.0008636,95840.0,95839.0,0.66099559]
[1733249242961,0.0017264,95875.0,95845.0,0.43167]
[1733249243206,0.0017264,95875.0,95845.0,0.53638259]
[1733249244120,0.15,95873.0,95845.0,0.31338259]
[1733249244396,0.208625,95866.0,95845.0,0.31338259]
[1733249244616,0.34667498,95870.0,95845.0,0.31338259]
[1733249244849,0.34667498,95870.0,95845.0,0.32938259]
[1733249245305,0.208625,95866.0,95845.0,0.32938259]
[1733249245515,0.208625,95866.0,95845.0,0.32238259]
[1733249245772,0.208625,95866.0,95845.0,0.32838259]
[1733249246010,0.34667498,95870.0,95845.0,0.32838259]
[1733249246244,0.34667498,95870.0,95845.0,0.31938259]
[1733249246460,0.208625,95866.0,95845.0,0.32838259]
[1733249246897,0.208625,95866.0,95845.0,0.31938259]
[1733249247140,0.208625,95866.0,95845.0,0.32838259]
[1733249247387,0.208625,95866.0,95845.0,0.32238259]
[1733249247590,0.208625,95866.0,95845.0,0.32838259]
[1733249248030,0.208639,95859.0,95845.0,0.22367]
[1733249248519,0.208616,95870.0,95845.0,0.32838259]
[1733249248520,0.34667498,95870.0,95845.0,0.32838259]
[1733249248739,0.208616,95870.0,95845.0,0.32838259]
[1733249249638,0.208624,95867.0,95845.0,0.32838259]
[1733249249853,0.208631,95863.0,95845.0,0.32838259]
[1733249250336,0.208642,95858.0,95845.0,0.32838259]
[1733249250766,0.208624,95867.0,95845.0,0.32838259]
[1733249251022,0.13805898,95870.0,95845.0,0.32838259]
[1733249251257,0.13805898,95860.0,95845.0,0.22367]
[1733249251729,0.208626,95866.0,95845.0,0.22367]
[1733249251957,0.208632,95863.0,95845.0,0.22367]
[1733249252198,0.208639,95860.0,95845.0,0.22367]
[1733249252410,0.34669798,95860.0,95845.0,0.22367]
[1733249252625,0.2103736,95856.0,95845.0,0.22367]
[1733249253967,0.2095273,95848.0,95845.0,0.015]
[1733249254402,0.0008633,95848.0,95845.0,0.015]
[1733249255834,0.2095283,95848.0,95845.0,0.015]
[1733249257249,0.0008633,95848.0,95845.0,0.015]
[1733249257982,0.2095283,95848.0,95845.0,0.015]
[1733249258202,0.25557619,95846.0,95845.0,0.015]
[1733249258432,0.33145411,95846.0,95845.0,0.015]
[1733249258872,0.33606635,95846.0,95845.0,0.015]
[1733249259113,0.33606635,95846.0,95845.0,0.006]
[1733249259333,0.33606635,95846.0,95845.0,0.007]
[1733249259773,0.33606635,95846.0,95840.0,0.0017258]
[1733249259774,0.847878,95841.0,95840.0,0.0017258]
[1733249260004,0.95259059,95841.0,95840.0,0.0017258]
[1733249260217,0.95740251,95841.0,95840.0,0.0017258]
[1733249260872,0.95940251,95841.0,95840.0,0.0027258]
[1733249261102,0.96440251,95841.0,95840.0,0.0037258]
[1733249261796,0.74140251,95841.0,95840.0,0.0037258]
[1733249266480,0.74140251,95841.0,95840.0,0.003948]
[1733249267179,0.96440251,95841.0,95840.0,0.003948]
[1733249267437,0.662502,95830.0,95829.0,8.4e-07]
[1733249267661,1.01691459,95830.0,95829.0,8.4e-07]
[1733249267901,0.208733,95816.0,95815.0,0.0017272]
[1733249268114,0.46344559,95816.0,95815.0,0.0017272]
[1733249268355,0.46826452,95816.0,95815.0,0.0017272]
[1733249268785,0.51686452,95816.0,95815.0,0.0017272]
[1733249269030,0.59636452,95816.0,95815.0,0.0017272]
[1733249269253,0.59636452,95816.0,95815.0,0.00231432]
[1733249269502,0.82236452,95816.0,95815.0,0.00331432]
[1733249269742,0.81936452,95816.0,95815.0,0.00231432]
[1733249270182,0.82236452,95816.0,95815.0,0.00331432]
[1733249270624,0.82236452,95816.0,95780.0,0.0783644]
[1733249270625,0.573,95815.0,95814.0,4.2e-07]
[1733249270838,0.67771259,95815.0,95814.0,0.00017609]
[1733249271051,0.6823949,95815.0,95814.0,0.00017609]
[1733249272111,0.6913949,95815.0,95814.0,0.00117609]
[1733249272335,0.4913949,95815.0,95814.0,0.00117609]
[1733249272573,0.27171259,95815.0,95814.0,0.00217609]
[1733249279416,0.29471259,95815.0,95814.0,0.00217609]
[1733249279633,0.49471259,95815.0,95814.0,0.00217609]
[1733249279847,0.48671259,95815.0,95814.0,0.00117609]
[1733249280088,0.47771259,95815.0,95814.0,0.00017609]
[1733249280517,0.48571259,95815.0,95814.0,0.00117609]
[1733249281172,0.47771259,95815.0,95814.0,0.00017609]
[1733249281639,0.67771259,95815.0,95814.0,0.00017609]
[1733249281874,0.72511259,95815.0,95814.0,0.00017609]
[1733249282092,0.91284405,95815.0,95814.0,9e-08]
[1733249282324,0.91284405,95815.0,95780.0,0.0008644]
[1733249282325,0.358809,95781.0,95780.0,0.0008644]
[1733249282557,0.46352159,95781.0,95780.0,0.00092301]
[1733249283732,0.46652159,95781.0,95780.0,0.00092301]
[1733249285794,0.48952159,95781.0,95780.0,0.00092301]
[1733249286029,0.68952159,95781.0,95780.0,0.00092301]
[1733249286261,0.69052159,95781.0,95780.0,0.00092301]
[1733249287056,0.68752159,95781.0,95780.0,0.00092301]
[1733249287729,0.71403294,95781.0,95780.0,0.00092301]
[1733249287935,0.71303294,95781.0,95780.0,0.00092301]
[1733249288385,0.72203294,95781.0,95780.0,0.00192301]
[1733249289262,0.72903294,95781.0,95780.0,0.00192301]
[1733249290267,0.70603294,95781.0,95780.0,0.00192301]
[1733249291548,0.50603294,95781.0,95780.0,0.00192301]
[1733249292461,0.70603294,95781.0,95780.0,0.00192301]
[1733249292675,0.50603294,95781.0,95780.0,0.00192301]
[1733249293553,0.35603294,95781.0,95780.0,0.00192301]
[1733249293770,0.016,95781.0,95780.0,0.08202301]
[1733249293987,0.016,95781.0,95780.0,0.08387081]
[1733249294221,0.016,95781.0,95780.0,0.08202301]
[1733249294454,0.016,95781.0,95780.0,0.08102301]
[1733249294455,0.009,95781.0,95780.0,0.08102301]
[1733249294721,0.10471259,95781.0,95780.0,0.08102301]
[1733249294931,0.11171259,95781.0,95780.0,0.08102301]
[1733249295146,0.12071259,95781.0,95780.0,0.08202301]
[1733249295348,0.11371259,95781.0,95780.0,0.08202301]
[1733249295567,0.11371259,95781.0,95780.0,0.08302301]
[1733249296038,0.10471259,95781.0,95780.0,0.08202301]
[1733249296219,0.10471259,95781.0,95780.0,0.08402301]
[1733249298359,0.208808,95782.0,95780.0,0.08402301]
[1733249298603,0.417607,95784.0,95780.0,0.08402301]
[1733249298806,0.208803,95784.0,95780.0,0.08402301]
[1733249299239,0.208803,95784.0,95780.0,0.08302301]
[1733249299452,0.208803,95784.0,95780.0,0.08102301]
[1733249299688,0.15,95789.0,95780.0,0.08102301]
[1733249299950,0.15,95787.0,95780.0,0.08102301]
[1733249300841,0.145,95785.0,95780.0,0.08102301]
[1733249301051,0.145,95785.0,95780.0,0.08202301]
[1733249301291,0.145,95785.0,95780.0,0.29083401]
[1733249301494,0.208785,95793.0,95780.0,0.08102301]
[1733249301942,0.001,95787.0,95780.0,0.08102301]
[1733249302381,0.208798,95786.0,95780.0,0.08102301]
[1733249302568,0.13805898,95790.0,95780.0,0.08102301]
[1733249303037,0.001,95787.0,95780.0,0.08102301]
[1733249303251,0.001,95787.0,95780.0,0.07575927]
[1733249303527,0.001,95787.0,95781.0,0.208809]
[1733249303762,0.001,95787.0,95782.0,0.208807]
[1733249303973,0.001,95787.0,95784.0,0.208803]
[1733249304184,0.001,95787.0,95784.0,0.21065069]
[1733249304403,0.002,95793.0,95784.0,0.21065069]
[1733249304404,0.002,95793.0,95785.0,0.00184769]
[1733249304618,0.001,95786.0,95784.0,0.208803]
[1733249305062,0.001,95786.0,95784.0,0.00184769]
[1733249305305,0.001,95786.0,95785.0,0.2088]
[1733249305511,0.208772,95798.0,95785.0,0.2088]
[1733249305955,0.13805898,95800.0,95782.0,0.208807]
[1733249305956,0.20877,95799.0,95784.0,0.001]
[1733249306187,0.13805898,95800.0,95786.0,0.0771]
[1733249306470,0.15,95799.0,95786.0,0.0771]
[1733249306701,0.208794,95788.0,95786.0,0.0771]
[1733249306940,0.10471259,95787.0,95777.0,0.0964]
[1733249307172,0.208816,95778.0,95777.0,0.02]
[1733249308805,0.208816,95778.0,95777.0,0.028]
[1733249309023,0.208812,95780.0,95777.0,0.028]
[1733249309687,0.15,95786.0,95777.0,0.028]
[1733249309928,0.2088,95785.0,95777.0,0.028]
[1733249310187,0.15,95786.0,95778.0,0.0816]
[1733249310870,0.15,95794.0,95779.0,0.208814]
[1733249311080,0.15,95790.0,95778.0,0.0816]
[1733249311344,0.15,95788.0,95778.0,0.0816]
[1733249311596,0.15,95788.0,95778.0,0.0826]
[1733249312049,0.208796,95787.0,95778.0,0.0826]
[1733249312305,0.208796,95787.0,95778.0,0.0816]
[1733249312788,0.208796,95787.0,95778.0,0.0833254]
[1733249313484,0.15,95789.0,95778.0,0.0833254]
[1733249313980,0.15,95787.0,95778.0,0.0833254]
[1733249314628,0.208798,95786.0,95778.0,0.0833254]
[1733249315567,0.208807,95782.0,95778.0,0.0833254]
[1733249316017,0.208798,95786.0,95778.0,0.0833254]
[1733249316498,0.208808,95782.0,95778.0,0.0833254]
[1733249316724,0.208808,95782.0,95778.0,0.0843254]
[1733249317650,0.208808,95782.0,95778.0,0.0833254]
[1733249317945,0.208808,95782.0,95778.0,0.0883254]
[1733249318610,0.208808,95782.0,95778.0,0.08866329]
[1733249319741,0.208798,95786.0,95778.0,0.08866329]
[1733249319989,0.358797,95787.0,95778.0,0.29747929]
[1733249320221,0.358797,95787.0,95778.0,0.08866329]
[1733249320435,0.208798,95786.0,95778.0,0.08866329]
[1733249320676,0.358797,95787.0,95778.0,0.08566329]
[1733249320891,0.358797,95787.0,95778.0,0.08366329]
[1733249321118,0.208804,95784.0,95778.0,0.08566329]
[1733249321334,0.358797,95787.0,95778.0,0.08466329]
[1733249321823,0.567594,95787.0,95778.0,0.08466329]
[1733249322045,0.358797,95787.0,95778.0,0.08466329]
[1733249322263,0.15,95788.0,95779.0,0.00184783]
[1733249322522,0.208781,95795.0,95784.0,0.208802]
[1733249322739,0.13823491,95800.0,95778.0,0.08466329]
[1733249322981,0.208798,95787.0,95778.0,0.08366329]
[1733249323196,0.417596,95787.0,95778.0,0.08366329]
[1733249323450,0.208791,95790.0,95778.0,0.29247729]
[1733249323662,0.208799,95786.0,95778.0,0.08366329]
[1733249323920,0.004,95795.0,95778.0,0.08366329]
[1733249323921,0.208808,95782.0,95778.0,0.08366329]
[1733249324130,0.208792,95789.0,95778.0,0.08366329]
[1733249324360,0.2088,95786.0,95778.0,0.08366329]
[1733249325055,0.2088,95786.0,95778.0,0.08466329]
[1733249325276,0.2088,95786.0,95778.0,0.08566329]
[1733249325579,0.000863,95787.0,95778.0,0.08566329]
[1733249325806,0.208798,95786.0,95778.0,0.08566329]
[1733249326285,0.000863,95787.0,95778.0,0.08566329]
[1733249326286,0.208807,95783.0,95778.0,0.08566329]
[1733249326633,0.208801,95785.0,95778.0,0.08566329]
[1733249327068,0.208801,95785.0,95778.0,0.08466329]
[1733249327242,0.208801,95785.0,95778.0,0.08366329]
[1733249327674,0.208801,95785.0,95778.0,0.08566329]
[1733249327868,0.208801,95785.0,95778.0,0.08366329]
[1733249328100,0.208801,95785.0,95778.0,0.08466329]
[1733249328340,0.208798,95786.0,95778.0,0.08566329]
[1733249329563,0.208798,95786.0,95778.0,0.08366329]
[1733249329818,0.208798,95786.0,95778.0,0.08566329]
[1733249330042,0.000863,95787.0,95778.0,0.29447929]
[1733249330263,0.000863,95787.0,95786.0,0.208798]
[1733249330489,0.000863,95787.0,95786.0,0.331598]
[1733249330941,0.000863,95787.0,95786.0,0.45931059]
[1733249333096,0.000863,95787.0,95786.0,0.46231059]
[1733249333381,0.000863,95787.0,95786.0,0.45931059]
[1733249333647,0.001863,95787.0,95786.0,0.1318]
[1733249333881,0.001863,95787.0,95786.0,0.13213794]
[1733249334117,0.001863,95787.0,95786.0,0.08443794]
[1733249340662,0.210659,95787.0,95786.0,0.08443794]
[1733249340936,0.210659,95787.0,95786.0,0.00933794]
[1733249341403,0.001863,95787.0,95786.0,0.00933794]
[1733249342466,0.25657559,95787.0,95786.0,0.00933794]
[1733249343437,0.30597559,95787.0,95786.0,0.00933794]
[1733249343674,0.30497559,95787.0,95786.0,0.00033794]
[1733249343897,0.30597559,95787.0,95786.0,0.00033794]
[1733249344128,0.30697559,95787.0,95786.0,0.00033794]
[1733249344348,0.30597559,95787.0,95786.0,0.00033794]
[1733249344812,0.33348888,95787.0,95786.0,0.00033794]
[1733249345035,0.33248888,95787.0,95786.0,0.00033794]
[1733249345259,0.33548888,95787.0,95786.0,0.00033794]
[1733249345889,0.34048888,95787.0,95786.0,0.00033794]
[1733249347484,0.29108888,95787.0,95786.0,0.00033794]
[1733249347936,0.18637629,95787.0,95786.0,0.00033794]
[1733249349265,0.29108888,95787.0,95786.0,0.00033794]
[1733249352536,0.36988888,95787.0,95786.0,0.00033794]
[1733249352963,0.67272034,95787.0,95786.0,0.00033794]
[1733249353180,0.91058365,95787.0,95786.0,9.4e-07]
[1733249353403,0.91058365,95787.0,95778.0,0.0017254]
[1733249353404,0.837614,95779.0,95778.0,0.0017254]
[1733249353696,0.97292161,95779.0,95778.0,0.0017254]
[1733249353928,0.97292161,95779.0,95777.0,4e-07]
[1733249353929,0.4,95778.0,95777.0,4e-07]
[1733249354157,0.76120761,95778.0,95777.0,4e-07]
[1733249354376,0.99560807,95778.0,95777.0,4e-07]
[1733249354597,0.99560851,95778.0,95777.0,4e-07]
[1733249355012,0.76120761,95778.0,95777.0,4e-07]
[1733249355243,0.94863408,95778.0,95777.0,4e-07]
[1733249355705,0.87717368,95778.0,95777.0,4e-07]
[1733249355931,0.83031745,95778.0,95777.0,4e-07]
[1733249356185,0.74561259,95778.0,95777.0,0.0010004]
[1733249358786,0.54561259,95778.0,95777.0,0.0010004]
[1733249359021,0.74561259,95778.0,95777.0,0.0010004]
[1733249359226,0.54561259,95778.0,95777.0,0.0010004]
[1733249359453,0.74561259,95778.0,95777.0,0.0010004]
[1733249360434,0.74561259,95778.0,95777.0,0.0027264]
[1733249360693,0.26971259,95778.0,95777.0,0.0027264]
[1733249360926,0.11971259,95778.0,95777.0,0.0027264]
[1733249362069,0.26971259,95778.0,95777.0,0.0027264]
[1733249364061,0.015,95778.0,95777.0,0.0027264]
[1733249364837,0.009,95778.0,95777.0,0.0787264]
[1733249365037,0.006,95778.0,95777.0,0.0777264]
[1733249365250,0.01,95778.0,95777.0,0.0777264]
[1733249365452,0.004,95778.0,95777.0,0.0777264]
[1733249365653,0.208798,95786.0,95777.0,0.0777264]
[1733249365880,0.15,95785.0,95777.0,0.0827264]
[1733249366357,0.150863,95787.0,95777.0,0.0827264]
[1733249366601,0.150863,95787.0,95778.0,0.208816]
[1733249366815,0.000863,95787.0,95779.0,0.208813]
[1733249367021,0.000863,95787.0,95783.0,0.208803]
[1733249367233,0.000863,95787.0,95783.0,0.417607]
[1733249367460,0.000863,95787.0,95783.0,0.208803]
[1733249367683,0.000863,95787.0,95780.0,0.0764]
[1733249367907,0.001,95786.0,95780.0,0.0764]
[1733249368119,0.001,95785.0,95781.0,0.208809]
[1733249368331,0.001,95786.0,95781.0,0.208809]
[1733249368549,0.000863,95787.0,95781.0,0.208809]
[1733249368764,0.002863,95787.0,95781.0,0.208809]
[1733249368994,0.001863,95787.0,95781.0,0.208809]
[1733249369372,0.001,95786.0,95780.0,0.0764]
[1733249369528,0.001863,95787.0,95780.0,0.0764]
[1733249369749,0.002863,95787.0,95781.0,0.208809]
[1733249370174,0.001863,95787.0,95784.0,0.417603]
[1733249370384,0.001,95786.0,95784.0,0.417603]
[1733249370626,0.001,95786.0,95784.0,0.208801]
[1733249370862,0.001863,95787.0,95784.0,0.208801]
[1733249371077,0.000863,95787.0,95784.0,0.208801]
[1733249371300,0.001863,95787.0,95784.0,0.208801]
[1733249371529,0.003863,95787.0,95786.0,0.338598]
[1733249372813,0.001863,95787.0,95786.0,0.338598]
[1733249373056,0.001863,95787.0,95786.0,0.343598]
[1733249373540,0.000863,95787.0,95786.0,0.343598]
[1733249373996,0.000863,95787.0,95786.0,0.346598]
[1733249375597,0.000863,95787.0,95786.0,0.1378]
[1733249379908,0.000863,95787.0,95786.0,0.0904]
[1733249380135,0.00558638,95787.0,95786.0,0.008]
[1733249380344,0.000863,95787.0,95786.0,0.008]
[1733249380573,0.25557559,95787.0,95786.0,0.008]
[1733249380781,0.26029417,95787.0,95786.0,0.008]
[1733249380996,0.26029417,95787.0,95786.0,0.005]
[1733249381448,0.358816,95778.0,95777.0,0.0017264]
[1733249381649,0.46352859,95778.0,95777.0,0.0017264]
[1733249381866,0.46822714,95778.0,95777.0,0.0017264]
[1733249383632,0.49561023,95778.0,95777.0,0.0017264]
[1733249383840,0.49461023,95778.0,95777.0,0.0017264]
[1733249384049,0.49961023,95778.0,95777.0,0.0017264]
[1733249384263,0.50047323,95778.0,95777.0,0.0017264]
[1733249384905,0.50347323,95778.0,95777.0,0.0017264]
[1733249386606,0.49877468,95778.0,95777.0,0.0017264]
[1733249390689,0.49077468,95778.0,95777.0,0.0017264]
[1733249390942,0.49277468,95778.0,95777.0,0.0017264]
[1733249391162,0.49577468,95778.0,95777.0,0.0017264]
[1733249392356,0.03324609,95778.0,95777.0,0.0017264]
[1733249395472,0.28795868,95778.0,95777.0,0.0017264]
[1733249396139,0.28795868,95778.0,95777.0,0.0007264]
[1733249400999,0.005863,95778.0,95777.0,0.0813264]
[1733249401214,0.005863,95778.0,95777.0,0.1302264]
[1733249402540,0.003863,95778.0,95777.0,0.1302264]
[1733249402959,0.001863,95778.0,95777.0,0.1302264]
[1733249403607,0.002863,95778.0,95777.0,0.1302264]
[1733249403852,0.002863,95778.0,95777.0,0.1332264]
[1733249404065,0.000863,95778.0,95777.0,0.1332264]
[1733249404269,0.001863,95778.0,95777.0,0.14107423]
[1733249404480,0.00177979,95778.0,95777.0,0.14107423]
[1733249405186,0.00177979,95778.0,95777.0,0.16407408]
[1733249406027,0.00177979,95778.0,95777.0,0.29616794]
[1733249406264,0.00177979,95778.0,95777.0,0.29432026]
[1733249406955,0.00177979,95778.0,95777.0,0.29132026]
[1733249407209,0.00177979,95778.0,95777.0,0.1352264]
[1733249407449,0.00177979,95778.0,95777.0,0.1442264]
[1733249407450,0.00277979,95778.0,95777.0,0.1442264]
[1733249410961,0.00277979,95778.0,95777.0,0.25078681]
[1733249411184,0.00277979,95778.0,95777.0,0.24893899]
[1733249411452,0.00277979,95778.0,95777.0,0.47193899]
[1733249416559,0.00277979,95778.0,95777.0,0.27193899]
[1733249416784,0.00277979,95778.0,95777.0,0.47193899]
[1733249422200,0.00277979,95778.0,95777.0,0.67193899]
[1733249422444,0.00277979,95778.0,95777.0,0.92193899]
[1733249422669,0.00277979,95778.0,95777.0,0.67193899]
[1733249424749,0.00277979,95778.0,95777.0,0.24893899]
[1733249425163,0.00277979,95778.0,95777.0,0.0953264]
[1733249425385,0.00277979,95778.0,95777.0,0.0147264]
[1733249425885,0.00277979,95778.0,95777.0,0.01657419]
[1733249426093,0.00277979,95778.0,95777.0,0.0147264]
[1733249429716,0.00277979,95778.0,95777.0,0.01657419]
[1733249429983,0.00277979,95778.0,95777.0,0.22618678]
[1733249430197,0.00277979,95778.0,95777.0,0.27053899]
[1733249432305,0.00277979,95778.0,95777.0,0.0147264]
[1733249436799,0.00277979,95778.0,95777.0,0.01657427]
[1733249437280,0.00277979,95778.0,95777.0,0.14428686]
[1733249437497,0.00277979,95778.0,95777.0,0.22638686]
[1733249437716,0.00277979,95778.0,95777.0,0.22453899]
[1733249439722,0.00277979,95778.0,95777.0,0.25142837]
[1733249442426,0.00277979,95778.0,95777.0,0.0147264]
[1733249442635,0.00277979,95778.0,95777.0,0.01657417]
[1733249443560,0.00277979,95778.0,95777.0,0.0147264]
[1733249443771,0.00277979,95778.0,95777.0,0.01657416]
[1733249443988,0.00277979,95778.0,95777.0,0.14428675]
[1733249447080,0.00277979,95778.0,95777.0,0.17153657]
[1733249455521,0.00277979,95778.0,95777.0,0.0147264]
[1733249455772,0.00277979,95778.0,95777.0,0.14428673]
[1733249457516,0.00277979,95778.0,95777.0,0.17198966]
[1733249460501,0.00277979,95778.0,95777.0,0.37198966]
[1733249460699,0.00277979,95778.0,95777.0,0.44854192]
[1733249460920,0.00277979,95778.0,95777.0,0.64854192]
[1733249467454,0.00017593,95800.0,95786.0,0.231798]
[1733249467665,0.00017593,95800.0,95786.0,0.41521059]
[1733249468296,0.00017593,95800.0,95786.0,0.86241059]
[1733249468520,0.00017593,95800.0,95799.0,0.40877]
[1733249468722,0.00017593,95800.0,95799.0,0.81388259]
[1733249468948,0.00017593,95800.0,95799.0,0.97098259]
[1733249469168,0.0008627,95814.0,95813.0,0.509139]
[1733249469395,0.00092136,95814.0,95813.0,0.66735159]
[1733249470275,0.00092136,95814.0,95813.0,0.86735159]
[1733249470703,0.00092136,95814.0,95813.0,0.87635159]
[1733249470934,0.00092136,95814.0,95813.0,0.46735159]
[1733249471152,0.00092136,95814.0,95813.0,0.33645159]
[1733249471408,0.00092136,95814.0,95813.0,0.34545159]
[1733249471636,0.00092136,95814.0,95813.0,0.34145159]
[1733249472065,0.00092136,95814.0,95813.0,0.33645159]
[1733249472470,0.00092136,95814.0,95813.0,0.236739]
[1733249472677,0.00092136,95814.0,95813.0,0.005]
[1733249472924,0.00092136,95814.0,95813.0,0.014]
[1733249473339,0.00092136,95814.0,95813.0,0.005]
[1733249473541,0.00092136,95814.0,95813.0,0.014]
[1733249474202,0.07612136,95814.0,95813.0,0.014]
[1733249474683,0.08361218,95814.0,95813.0,0.014]
[1733249474833,0.08361218,95814.0,95799.0,0.208768]
[1733249475032,0.208752,95808.0,95799.0,0.208768]
[1733249475283,0.00748853,95807.0,95799.0,0.208768]
[1733249475857,0.00748853,95807.0,95802.0,0.208762]
[1733249476076,0.07712136,95814.0,95806.0,0.208753]
[1733249476283,0.00748825,95806.0,95795.0,0.023]
[1733249476546,0.208739,95813.0,95804.0,0.023]
[1733249476773,0.07712136,95814.0,95806.0,0.023]
[1733249477011,0.00748853,95812.0,95806.0,0.023]
[1733249477232,0.07712136,95814.0,95806.0,0.023]
[1733249477461,0.07712136,95814.0,95803.0,0.20876]
[1733249477462,0.00748853,95811.0,95804.0,0.023]
[1733249477664,0.208739,95813.0,95804.0,0.023]
[1733249477897,0.00749055,95810.0,95806.0,0.023]
[1733249478122,0.208739,95813.0,95806.0,0.023]
[1733249478123,0.000863,95808.0,95806.0,0.023]
[1733249478360,0.000863,95808.0,95801.0,0.023]